fUST/lending_fUST_20251027
["ID","MTS","AMOUNT","RATE_DAILY","PERIOD"]
[392465892,1761519032667,-500.0,0.0001638,2]
[392465894,1761519032677,-500.0,0.0001638,2]
[392465896,1761519032686,-500.0,0.0001638,2]
[392465898,1761519032696,-311.46642737,0.0001638,2]
[392465900,1761519032705,-500.0,0.00016382,2]
[392465902,1761519032715,-536.94892392,0.00016382,2]
[392465904,1761519032723,-382.96780742,0.00016652,2]
[392465906,1761519032736,-300.0,0.00016711,2]
[392465908,1761519032745,-300.0,0.00016711,2]
[392465910,1761519032754,-300.0,0.00016711,2]
[392465912,1761519032763,-300.0,0.00016711,2]
[392465913,1761519032774,-300.0,0.00016711,2]
[392465914,1761519032783,-300.0,0.00016711,2]
[392465915,1761519032792,-300.0,0.00016711,2]
[392465916,1761519032801,-300.0,0.00016711,2]
[392465917,1761519032811,-300.0,0.00016711,2]
[392465918,1761519032820,-300.0,0.00016711,2]
[392465919,1761519032829,-300.0,0.00016711,2]
[392465920,1761519032839,-300.0,0.00016711,2]
[392465921,1761519032848,-300.0,0.00016711,2]
[392465922,1761519032857,-300.0,0.00016711,2]
[392465923,1761519032866,-300.0,0.00016711,2]
[392465924,1761519032876,-600.0,0.00016711,2]
[392465925,1761519032885,-500.0,0.00016867,2]
[392465926,1761519032894,-500.0,0.00016867,2]
[392465928,1761519032903,-500.0,0.00016867,2]
[392465930,1761519032912,-500.0,0.0001712,2]
[392465932,1761519032921,-500.0,0.0001712,2]
[392465934,1761519032930,-500.0,0.00017314,2]
[392465936,1761519032940,-500.0,0.00017314,2]
[392465938,1761519032949,-500.0,0.00017314,2]
[392465940,1761519032959,-500.0,0.00017314,2]
[392465942,1761519032968,-501.86765612,0.00017314,2]
[392465944,1761519032978,-500.0,0.00017314,2]
[392465946,1761519032987,-1000.0,0.00017415,2]
[392465948,1761519032996,-1000.0,0.00017415,2]
[392465950,1761519033005,-573.77332591,0.00017668,2]
[392465952,1761519033014,-200.1551012,0.00017688,2]
[392465954,1761519033023,-124.51029186,0.00017862,2]
[392466064,1761519038060,-454.87608076,0.00016374,2]
[392466065,1761519038070,-451.0349338,0.00016374,2]
[392466066,1761519038079,-500.0,0.00016374,2]
[392466067,1761519038088,-500.0,0.00016374,2]
[392466068,1761519038098,-500.0,0.00016374,2]
[392466069,1761519038107,-500.0,0.00016374,2]
[392466070,1761519038117,-500.0,0.00016374,2]
[392466072,1761519038125,-500.0,0.00016374,2]
[392466074,1761519038135,-500.0,0.00016374,2]
[392466076,1761519038144,-500.0,0.00016374,2]
[392466077,1761519038153,-496.9492881,0.00016374,2]
[392466078,1761519038163,-500.0,0.00016374,2]
[392466079,1761519038172,-500.0,0.00016374,2]
[392466080,1761519038181,-530.76891607,0.00016374,2]
[392466081,1761519038191,-500.0,0.00016374,2]
[392466082,1761519038200,-500.0,0.00016374,2]
[392466083,1761519038209,-500.0,0.00016374,2]
[392466084,1761519038220,-500.0,0.00016374,2]
[392466085,1761519038229,-500.0,0.00016374,2]
[392466086,1761519038239,-500.0,0.00016374,2]
[392466087,1761519038248,-500.0,0.00016374,2]
[392466088,1761519038258,-500.0,0.00016374,2]
[392466089,1761519038266,-500.0,0.00016374,2]
[392466090,1761519038276,-500.0,0.00016374,2]
[392466091,1761519038285,-500.0,0.00016374,2]
[392466092,1761519038294,-207.76238369,0.00016374,2]
[392466093,1761519038303,-500.0,0.00016374,2]
[392466094,1761519038312,-500.0,0.00016374,2]
[392466095,1761519038322,-306.90823939,0.00016374,2]
[392466096,1761519038331,-500.0,0.00016374,2]
[392466097,1761519038340,-500.0,0.00016374,2]
[392466098,1761519038349,-500.0,0.00016374,2]
[392466099,1761519038359,-500.0,0.00016374,2]
[392466100,1761519038368,-601.24043413,0.00016374,2]
[392466101,1761519038378,-500.0,0.00016374,2]
[392466102,1761519038388,-500.0,0.00016374,2]
[392466103,1761519038397,-500.0,0.00016374,2]
[392466104,1761519038407,-500.0,0.00016374,2]
[392466105,1761519038417,-500.0,0.00016374,2]
[392466106,1761519038427,-500.0,0.00016374,2]
[392466107,1761519038436,-500.0,0.00016374,2]
[392466108,1761519038446,-500.0,0.00016374,2]
[392466109,1761519038456,-500.0,0.00016374,2]
[392466110,1761519038466,-500.0,0.00016374,2]
[392466111,1761519038476,-500.0,0.00016374,2]
[392466112,1761519038486,-162.40968208,0.00016374,2]
[392466113,1761519038496,-500.0,0.00016374,2]
[392466114,1761519038507,-500.0,0.00016374,2]
[392466115,1761519038517,-500.0,0.00016374,2]
[392466116,1761519038526,-500.0,0.00016374,2]
[392466117,1761519038536,-500.0,0.00016374,2]
[392466118,1761519038545,-500.0,0.00016374,2]
[392466119,1761519038555,-500.0,0.00016374,2]
[392466120,1761519038564,-500.0,0.00016374,2]
[392466121,1761519038574,-500.0,0.00016374,2]
[392466122,1761519038583,-500.0,0.00016374,2]
[392466123,1761519038593,-500.0,0.00016374,2]
[392466124,1761519038602,-500.0,0.00016374,2]
[392466125,1761519038612,-500.0,0.00016374,2]
[392466126,1761519038622,-500.0,0.00016374,2]
[392466127,1761519038640,-500.0,0.00016374,2]
[392466128,1761519038656,-500.0,0.00016374,2]
[392466129,1761519038669,-500.0,0.00016374,2]
[392466130,1761519038686,-500.0,0.00016374,2]
[392466131,1761519038704,-500.0,0.00016374,2]
[392466132,1761519038720,-500.0,0.00016374,2]
[392466133,1761519038736,-500.0,0.00016374,2]
[392466134,1761519038753,-500.0,0.00016374,2]
[392466135,1761519038770,-500.0,0.00016374,2]
[392466136,1761519038789,-500.0,0.00016374,2]
[392466137,1761519038807,-500.0,0.00016374,2]
[392466138,1761519038825,-500.0,0.00016374,2]
[392466139,1761519038843,-500.0,0.00016374,2]
[392466140,1761519038859,-500.0,0.00016374,2]
[392466141,1761519038877,-500.0,0.00016374,2]
[392466142,1761519038897,-500.0,0.00016374,2]
[392466143,1761519038913,-500.0,0.00016374,2]
[392466144,1761519038927,-550.65346111,0.00016374,2]
[392466145,1761519038945,-500.0,0.00016374,2]
[392466146,1761519038961,-500.0,0.00016374,2]
[392466147,1761519038973,-500.0,0.00016374,2]
[392466148,1761519038989,-500.0,0.00016374,2]
[392466149,1761519039002,-881.8855801,0.00017862,2]
[392466150,1761519039016,-1000.0,0.00017862,2]
[392466151,1761519039029,-1000.0,0.00017862,2]
[392466152,1761519039046,-1000.0,0.00017862,2]
[392466153,1761519039059,-1003.47854547,0.00017862,2]
[392466154,1761519039073,-158.61,0.00017885,3]
[392466155,1761519039086,-420.0,0.00017895,2]
[392466156,1761519039096,-475.88,0.00017943,3]
[392466157,1761519039107,-634.45,0.00017953,3]
[392466158,1761519039119,-317.22,0.00017953,3]
[392466159,1761519039134,-1500.0,0.00017963,2]
[392466160,1761519039147,-1500.0,0.00017963,2]
[392466161,1761519039161,-1680.0,0.00017985,2]
[392466162,1761519039174,-1187.3026609,0.00018278,2]
[392466163,1761519039188,-286.8234552,0.00018278,2]
[392466164,1761519039202,-307.3362199,0.00018278,2]
[392466165,1761519039216,-997.0874715,0.00018278,2]
[392466166,1761519039229,-151.0,0.00018347,2]
[392466167,1761519039243,-720.0,0.00018382,2]
[392466168,1761519039256,-401.14510133,0.0001841,2]
[392466169,1761519039270,-1500.0,0.0001841,2]
[392466170,1761519039283,-1500.0,0.0001841,2]
[392466171,1761519039296,-1500.0,0.0001841,2]
[392466172,1761519039309,-406.89,0.00018433,2]
[392466173,1761519039324,-2375.6,0.00018501,3]
[392466174,1761519039338,-1268.9,0.00018501,3]
[392466175,1761519039351,-2000.0,0.00018511,2]
[392466176,1761519039365,-1758.96968597,0.00018511,2]
[392466177,1761519039377,-160.0,0.00018519,2]
[392466178,1761519039392,-177.4108125,0.000186,2]
[392466179,1761519039405,-2159.53680134,0.000186,2]
[392466180,1761519039418,-265.06557288,0.000186,2]
[392466181,1761519039430,-229.08095737,0.000186,2]
[392466182,1761519039443,-160.0,0.00018641,2]
[392466183,1761519039455,-160.0,0.00018645,2]
[392466184,1761519039468,-160.0,0.00018645,2]
[392466185,1761519039481,-403.49456409,0.00018673,2]
[392466186,1761519039493,-160.0,0.00018673,2]
[392466187,1761519039506,-151.0,0.00018764,2]
[392466188,1761519039519,-177.4108125,0.000188,2]
[392466189,1761519039531,-2159.53680134,0.000188,2]
[392466190,1761519039544,-265.06557288,0.000188,2]
[392466191,1761519039556,-229.08095737,0.000188,2]
[392466192,1761519039570,-221.91,0.00018897,2]
[392466193,1761519039582,-2000.0,0.00018958,2]
[392466194,1761519039597,-2000.0,0.00018958,2]
[392466195,1761519039611,-2000.0,0.00018958,2]
[392466196,1761519039624,-4000.0,0.00018988,2]
[392466197,1761519039638,-177.4108125,0.00019,2]
[392466198,1761519039650,-2159.53680134,0.00019,2]
[392466199,1761519039663,-265.06557288,0.00019,2]
[392466200,1761519039675,-164.07992757,0.00019,2]
[392466201,1761519039691,-65.0010298,0.00019,2]
[392466203,1761519039704,-304.92460249,0.00019,2]
[392466204,1761519039717,-2500.0,0.00019058,2]
[392466206,1761519039731,-260.0,0.00019067,2]
[392466207,1761519039744,-151.0,0.00019178,2]
[392466208,1761519039757,-151.0,0.00019178,2]
[392466209,1761519039770,-151.0,0.00019178,2]
[392466210,1761519039782,-151.0,0.00019178,2]
[392466211,1761519039795,-151.0,0.00019178,2]
[392466213,1761519039809,-251.617197,0.00019178,2]
[392466215,1761519039820,-151.0,0.00019178,2]
[392466217,1761519039829,-151.0,0.00019178,2]
[392466218,1761519039838,-153.365986,0.00019178,2]
[392466220,1761519039847,-151.0,0.00019178,2]
[392466222,1761519039857,-266.184451,0.00019178,2]
[392466223,1761519039866,-151.0,0.00019178,2]
[392466224,1761519039875,-151.0,0.00019178,2]
[392466225,1761519039886,-151.0,0.00019178,2]
[392466226,1761519039896,-151.0,0.00019178,2]
[392466227,1761519039906,-122.37300724,0.00019178,2]
[392466378,1761519043556,-5455.61855773,0.0001621,2]
[392466380,1761519043565,-441.84155998,0.000189,2]
[392466382,1761519043574,-28.62699276,0.00019178,2]
[392466384,1761519043583,-151.0,0.00019178,2]
[392466386,1761519043592,-151.0,0.00019178,2]
[392466388,1761519043601,-151.0,0.00019178,2]
[392466389,1761519043610,-151.0,0.00019178,2]
[392466392,1761519043618,-151.0,0.00019178,2]
[392466394,1761519043627,-151.0,0.00019178,2]
[392466396,1761519043638,-151.0,0.00019178,2]
[392466398,1761519043647,-227.453987,0.00019178,2]
[392466400,1761519043658,-227.453987,0.00019178,2]
[392466402,1761519043667,-227.453987,0.00019178,2]
[392466404,1761519043677,-227.453987,0.00019178,2]
[392466406,1761519043686,-227.453987,0.00019178,2]
[392466408,1761519043696,-227.453987,0.00019178,2]
[392466409,1761519043705,-227.453987,0.00019178,2]
[392466411,1761519043715,-227.453987,0.00019178,2]
[392466413,1761519043725,-151.0,0.00019178,2]
[392466415,1761519043738,-151.0,0.00019178,2]
[392466417,1761519043747,-151.0,0.00019178,2]
[392466419,1761519043757,-151.0,0.00019178,2]
[392466421,1761519043766,-155.194298,0.00019178,2]
[392466423,1761519043777,-151.0,0.00019178,2]
[392466425,1761519043786,-151.0,0.00019178,2]
[392466427,1761519043795,-151.0,0.00019178,2]
[392466429,1761519043805,-151.0,0.00019178,2]
[392466430,1761519043815,-151.0,0.00019178,2]
[392466432,1761519043824,-151.0,0.00019178,2]
[392466434,1761519043833,-151.0,0.00019178,2]
[392466436,1761519043843,-151.0,0.00019178,2]
[392466437,1761519043853,-151.0,0.00019178,2]
[392466438,1761519043863,-151.0,0.00019178,2]
[392466439,1761519043873,-151.0,0.00019178,2]
[392466440,1761519043883,-151.0,0.00019178,2]
[392466441,1761519043896,-2159.53680134,0.000192,2]
[392466442,1761519043906,-265.06557288,0.000192,2]
[392466443,1761519043916,-229.08095737,0.000192,2]
[392466444,1761519043926,-168.0,0.0001925,2]
[392466445,1761519043937,-317.22,0.00019255,3]
[392466446,1761519043947,-984.0,0.00019256,2]
[392466447,1761519043957,-632.0,0.00019256,2]
[392466448,1761519043967,-2166.0,0.00019256,2]
[392466449,1761519043976,-1268.9,0.00019323,3]
[392466450,1761519043987,-634.44,0.00019323,3]
[392466451,1761519043997,-2159.53680134,0.000194,2]
[392466452,1761519044007,-265.06557288,0.000194,2]
[392466453,1761519044017,-229.08095737,0.000194,2]
[392466455,1761519044026,-168.0,0.0001947,2]
[392466456,1761519044036,-151.0,0.00019488,2]
[392466458,1761519044046,-151.0,0.00019488,2]
[392466460,1761519044055,-151.0,0.00019488,2]
[392466462,1761519044066,-151.0,0.00019488,2]
[392466463,1761519044076,-151.0,0.00019488,2]
[392466465,1761519044086,-151.0,0.00019488,2]
[392466468,1761519044096,-154.4120634,0.00019488,2]
[392466469,1761519044105,-500.0,0.00019488,2]
[392466471,1761519044115,-152.96043574,0.00019488,2]
[392466473,1761519044124,-151.0,0.00019488,2]
[392466475,1761519044133,-151.0,0.00019488,2]
[392466477,1761519044142,-151.0,0.00019488,2]
[392466479,1761519044152,-151.0,0.00019488,2]
[392466481,1761519044162,-201.87452586,0.00019488,2]
[392466483,1761519044173,-1000.0,0.00019488,2]
[392466485,1761519044183,-1000.0,0.00019488,2]
[392466487,1761519044193,-1000.0,0.00019488,2]
[392466489,1761519044203,-1000.0,0.00019488,2]
[392466491,1761519044213,-1000.0,0.00019488,2]
[392466493,1761519044223,-1000.0,0.00019488,2]
[392466495,1761519044233,-187.58760619,0.00019488,2]
[392466497,1761519044243,-763.0,0.000195,2]
[392466499,1761519044252,-489.70273553,0.00019506,2]
[392466501,1761519044262,-2500.0,0.00019506,2]
[392466503,1761519044272,-2500.0,0.00019506,2]
[392466505,1761519044282,-587.0,0.00019558,2]
[392466507,1761519044292,-151.0,0.00019576,7]
[392466509,1761519044302,-2159.53680134,0.000196,2]
[392466511,1761519044312,-3000.0,0.00019606,2]
[392466513,1761519044322,-360.0,0.00019615,2]
[392466515,1761519044332,-151.0,0.00019696,7]
[392466517,1761519044342,-151.0,0.00019696,7]
[392466519,1761519044350,-443.82,0.00019797,2]
[392466521,1761519044360,-2159.53680134,0.000198,2]
[392466522,1761519044369,-401.14510132,0.00019821,2]
[392466524,1761519044380,-4751.2,0.00019871,3]
[392466526,1761519044391,-2537.8,0.00019871,3]
[392466528,1761519044401,-168.0,0.00019872,2]
[392466530,1761519044411,-151.0,0.00019892,7]
[392466532,1761519044421,-312.62746002,0.000199,2]
[392466534,1761519044431,-250.0,0.00019916,2]
[392466536,1761519044441,-151.0,0.00019949,7]
[392466538,1761519044451,-151.0,0.00019949,7]
[392466540,1761519044462,-151.0,0.00019949,7]
[392466542,1761519044472,-212.126842,0.00019949,7]
[392466544,1761519044481,-227.453987,0.00019949,7]
[392466546,1761519044491,-227.453987,0.00019949,7]
[392466548,1761519044502,-227.453987,0.00019949,7]
[392466549,1761519044513,-227.453987,0.00019949,7]
[392466550,1761519044523,-151.0,0.00019949,7]
[392466551,1761519044533,-301.999999,0.00019949,7]
[392466552,1761519044542,-6000.0,0.00019996,2]
[392466553,1761519044552,-12251.09967886,0.0002,2]
[392466554,1761519044562,-555.39260717,0.0002,7]
[392466555,1761519044574,-368.07620667,0.0002,2]
[392466556,1761519044585,-1041.05378611,0.0002,2]
[392466564,1761519046431,-2496.44064289,0.00019178,2]
[392466569,1761519437355,165.658393,0.00013699,2]
[392466571,1761519835750,1500.0,0.00015,2]
[392466592,1761520232297,-348.3079572,0.00015625,2]
[392466607,1761520232441,-295.07668236,0.00015625,2]
[392466608,1761520232451,-307.35039482,0.00015783,2]
[392466637,1761520238108,-336.03424474,0.00015783,2]
[392466639,1761520238118,-39.71575526,0.00016363,2]
[392466643,1761520238152,-260.28424474,0.00016363,2]
[392466646,1761520238162,-270.37384184,0.00016363,2]
[392466648,1761520238172,-444.10547646,0.00016363,2]
[392466650,1761520238181,-289.0267149,0.00016363,2]
[392466652,1761520238191,-200.76758215,0.00016363,2]
[392466654,1761520238202,-189.75137597,0.00016363,2]
[392466656,1761520238212,-336.75210179,0.00016363,2]
[392466658,1761520238221,-500.0,0.00016363,2]
[392466660,1761520238231,-500.0,0.00016363,2]
[392466661,1761520238240,-500.0,0.00016363,2]
[392466664,1761520238250,-500.0,0.00016363,2]
[392466665,1761520238260,-500.0,0.00016363,2]
[392466667,1761520238269,-500.0,0.00016363,2]
[392466669,1761520238280,-500.0,0.00016363,2]
[392466671,1761520238289,-500.0,0.00016363,2]
[392466673,1761520238299,-500.0,0.00016363,2]
[392466675,1761520238309,-500.0,0.00016363,2]
[392466677,1761520238318,-500.0,0.00016363,2]
[392466680,1761520238329,-500.0,0.00016363,2]
[392466682,1761520238338,-500.0,0.00016363,2]
[392466684,1761520238347,-500.0,0.00016363,2]
[392466686,1761520238357,-500.0,0.00016363,2]
[392466688,1761520238366,-500.0,0.00016363,2]
[392466690,1761520238376,-500.0,0.00016363,2]
[392466691,1761520238386,-500.0,0.00016363,2]
[392466693,1761520238395,-500.0,0.00016363,2]
[392466694,1761520238405,-500.0,0.00016363,2]
[392466695,1761520238414,-500.0,0.00016363,2]
[392466696,1761520238424,-500.0,0.00016363,2]
[392466697,1761520238433,-500.0,0.00016363,2]
[392466698,1761520238442,-500.0,0.00016363,2]
[392466699,1761520238452,-500.0,0.00016363,2]
[392466700,1761520238464,-500.0,0.00016363,2]
[392466701,1761520238474,-500.0,0.00016363,2]
[392466702,1761520238483,-500.0,0.00016363,2]
[392466703,1761520238492,-500.0,0.00016363,2]
[392466704,1761520238501,-500.0,0.00016363,2]
[392466705,1761520238512,-500.0,0.00016363,2]
[392466706,1761520238521,-500.0,0.00016363,2]
[392466707,1761520238532,-439.45034174,0.00016363,2]
[392466708,1761520238541,-500.0,0.00016363,2]
[392466709,1761520238551,-500.0,0.00016363,2]
[392466710,1761520238561,-500.0,0.00016363,2]
[392466711,1761520238571,-500.0,0.00016363,2]
[392466712,1761520238580,-500.0,0.00016363,2]
[392466713,1761520238590,-630.07956124,0.00016363,2]
[392466714,1761520238600,-500.0,0.00016363,2]
[392466715,1761520238611,-500.0,0.00016363,2]
[392466716,1761520238620,-500.0,0.00016363,2]
[392466717,1761520238630,-500.0,0.00016363,2]
[392466718,1761520238640,-500.0,0.00016363,2]
[392466719,1761520238650,-500.0,0.00016363,2]
[392466720,1761520238659,-500.0,0.00016363,2]
[392466721,1761520238670,-500.0,0.00016363,2]
[392466722,1761520238680,-500.0,0.00016363,2]
[392466723,1761520238689,-500.0,0.00016363,2]
[392466724,1761520238701,-500.0,0.00016363,2]
[392466725,1761520238710,-500.0,0.00016363,2]
[392466726,1761520238719,-500.0,0.00016363,2]
[392466727,1761520238729,-500.0,0.00016363,2]
[392466728,1761520238739,-135.32022217,0.00016363,2]
[392466729,1761520238755,-364.67977783,0.00016363,2]
[392466730,1761520238765,-500.0,0.00016363,2]
[392466731,1761520238775,-4604.29773729,0.00016364,2]
[392466734,1761520240642,-374.18,0.00016364,2]
[392466893,1761520246442,-336.03424474,0.00015625,2]
[392466894,1761520246452,-617.06738132,0.00016364,2]
[392466895,1761520246481,-3451.14911013,0.00016364,2]
[392466899,1761520727556,635.586323,0.00013699,2]
[392466901,1761520808221,500.0,0.00015,2]
[392466902,1761521017503,329.96575526,0.00014908,2]
[392466903,1761521033012,329.96575526,0.00014908,2]
[392466925,1761521365673,937.745358,0.00030137,120]
[392466934,1761521427407,3365.18680777,0.00018262,8]
[392466973,1761521432660,-756.0467715,0.00015361,2]
[392468013,1761521839513,132476.74695136,0.0003,120]
[392468027,1761522505895,616.114783,0.00014474,2]
[392468028,1761522507862,2461.99467287,0.00014474,2]
[392468063,1761522632515,547.09739912,0.00014474,2]
[392468072,1761522632596,-178.5896253,0.00015181,2]
[392468074,1761522632605,-548.89965923,0.000152,2]
[392468076,1761522632615,-2186.20120688,0.00015236,2]
[392468078,1761522632624,-201.0,0.00015261,2]
[392468080,1761522632633,-300.0,0.00015261,2]
[392468082,1761522632642,-1200.0,0.00015261,2]
[392468084,1761522632651,-181.0,0.00015261,2]
[392468085,1761522632660,-205.83530187,0.00015261,2]
[392468087,1761522632669,-1223.08963606,0.00015262,2]
[392468089,1761522632679,-999.0,0.00015286,2]
[392468091,1761522632688,-1857.86404622,0.00015307,2]
[392468093,1761522632697,-196.06294952,0.0001536,2]
[392468095,1761522632706,-305.13619294,0.0001536,2]
[392468097,1761522632715,-500.0,0.0001536,2]
[392468099,1761522632724,-500.0,0.0001536,2]
[392468101,1761522632734,-500.0,0.0001536,2]
[392468103,1761522632743,-500.0,0.0001536,2]
[392468105,1761522632752,-500.0,0.0001536,2]
[392468106,1761522632761,-500.0,0.0001536,2]
[392468108,1761522632770,-500.0,0.0001536,2]
[392468110,1761522632779,-500.0,0.0001536,2]
[392468125,1761522632788,-500.0,0.0001536,2]
[392468127,1761522632944,-500.0,0.0001536,2]
[392468129,1761522632955,-500.0,0.0001536,2]
[392468131,1761522632964,-500.0,0.0001536,2]
[392468133,1761522632974,-370.66983714,0.0001536,2]
[392468135,1761522632983,-500.0,0.0001536,2]
[392468136,1761522632992,-500.0,0.0001536,2]
[392468138,1761522633001,-3931.63329744,0.00015361,2]
[392468142,1761522633033,-191.64816501,0.0001536,2]
[392468144,1761522633042,-500.0,0.0001536,2]
[392468146,1761522633056,-37.90692489,0.00015361,2]
[392468148,1761522633068,-8024.1,0.00015361,2]
[392468301,1761522638458,-500.0,0.0001536,2]
[392468302,1761522638468,-500.0,0.0001536,2]
[392468303,1761522638477,-500.0,0.0001536,2]
[392468304,1761522638487,-500.0,0.0001536,2]
[392468305,1761522638497,-500.0,0.0001536,2]
[392468306,1761522638506,-500.0,0.0001536,2]
[392468307,1761522638515,-3747.46686984,0.00015361,2]
[392468308,1761522638527,-1146.1,0.00015361,2]
[392468309,1761522638546,-498.03557956,0.00015361,2]
[392468310,1761522638557,-12900.89330857,0.00015361,2]
[392468317,1761522640790,-16073.7430818,0.00015361,2]
[392468334,1761522646697,-1042.725,0.00015361,2]
[392468342,1761523025377,226.500328,0.00014474,2]
[392468344,1761523306270,-250.0,0.0002,10]
[392468350,1761523552350,-155.38477508,0.00015079,2]
[392468356,1761523567871,155.38477508,0.00014929,2]
[392468357,1761523674593,7458.56307582,0.00015,2]
[392468399,1761523831903,-295.1864566,0.00015079,2]
[392468401,1761523831913,-1070.20343157,0.00015255,2]
[392468403,1761523831923,-197.46540794,0.00015258,2]
[392468405,1761523831932,-300.0,0.00015352,2]
[392468407,1761523831943,-300.0,0.00015352,2]
[392468409,1761523831953,-300.0,0.00015352,2]
[392468411,1761523831963,-300.0,0.00015352,2]
[392468413,1761523831972,-1200.0,0.00015352,2]
[392468415,1761523831982,-151.79337632,0.00015353,2]
[392468417,1761523831993,-500.0,0.00015353,2]
[392468419,1761523832002,-158.3396506,0.00015353,2]
[392468422,1761523832012,-399.04326509,0.00015353,2]
[392468424,1761523832022,-500.0,0.00015353,2]
[392468425,1761523832032,-500.0,0.00015353,2]
[392468428,1761523832042,-206.07323638,0.00015353,2]
[392468429,1761523832051,-500.0,0.00015353,2]
[392468432,1761523832060,-152.29664857,0.00015353,2]
[392468434,1761523832070,-500.0,0.00015353,2]
[392468435,1761523832079,-500.0,0.00015353,2]
[392468436,1761523832087,-500.0,0.00015353,2]
[392468437,1761523832096,-500.0,0.00015353,2]
[392468438,1761523832106,-500.0,0.00015353,2]
[392468439,1761523832115,-500.0,0.00015353,2]
[392468440,1761523832124,-500.0,0.00015353,2]
[392468441,1761523832133,-500.0,0.00015353,2]
[392468442,1761523832143,-500.0,0.00015353,2]
[392468443,1761523832152,-500.0,0.00015353,2]
[392468444,1761523832161,-500.0,0.00015353,2]
[392468445,1761523832170,-500.0,0.00015353,2]
[392468446,1761523832178,-500.0,0.00015353,2]
[392468447,1761523832187,-500.0,0.00015353,2]
[392468448,1761523832196,-261.33027389,0.00015353,2]
[392468449,1761523832205,-500.0,0.00015353,2]
[392468450,1761523832214,-500.0,0.00015353,2]
[392468451,1761523832224,-500.0,0.00015353,2]
[392468452,1761523832234,-500.0,0.00015353,2]
[392468454,1761523832245,-500.0,0.00015353,2]
[392468456,1761523832255,-223.39413466,0.00015353,2]
[392468458,1761523832266,-500.0,0.00015353,2]
[392468460,1761523832275,-500.0,0.00015353,2]
[392468461,1761523832285,-500.0,0.00015353,2]
[392468463,1761523832294,-500.0,0.00015353,2]
[392468466,1761523832305,-500.0,0.00015353,2]
[392468468,1761523832314,-500.0,0.00015353,2]
[392468470,1761523832324,-500.0,0.00015353,2]
[392468472,1761523832333,-500.0,0.00015353,2]
[392468474,1761523832342,-151.0,0.00015354,2]
[392468476,1761523832353,-42431.7248257,0.00015354,2]
[392468477,1761523832362,-151.0,0.00015355,2]
[392468479,1761523832371,-163.622473,0.00015355,2]
[392468481,1761523832381,-151.0,0.00015355,2]
[392468483,1761523832390,-500.0,0.00015355,2]
[392468486,1761523832399,-151.0,0.00015361,2]
[392468487,1761523832410,-500.0,0.00015361,2]
[392468490,1761523832420,-243.9532285,0.00015361,2]
[392468491,1761523832430,-1988.300723,0.00015364,2]
[392468493,1761523832440,-164.13438117,0.00015371,2]
[392468495,1761523832450,-562.2222489,0.0001541,2]
[392468497,1761523832460,-433.0280662,0.0001541,2]
[392468514,1761523832616,-151.0,0.00015416,2]
[392468516,1761523832628,-500.0,0.00015416,2]
[392468518,1761523832638,-3593.8870518,0.00015421,2]
[392468521,1761523832648,-182.60873191,0.00015471,2]
[392468522,1761523832658,-500.0,0.00015471,2]
[392468525,1761523832667,-500.0,0.00015525,2]